lending/lending_fUSD_20250122
["ID","MTS","AMOUNT","RATE_DAILY","PERIOD"]
[350000211,1737559834502,-500.0,0.00020965,2]
[350000212,1737559834511,-500.0,0.00020965,2]
[350000213,1737559834521,-500.0,0.00020965,2]
[350000214,1737559834530,-659.456957,0.00020965,2]
[350000215,1737559834542,-500.0,0.00020965,2]
[350000216,1737559834551,-500.0,0.00020965,2]
[350000217,1737559834561,-992.003819,0.00020965,2]
[350000218,1737559834571,-500.0,0.00020965,2]
[350000219,1737559834580,-500.0,0.00020965,2]
[350000220,1737559834590,-500.0,0.00020965,2]
[350000221,1737559834599,-500.0,0.00020965,2]
[350000222,1737559834608,-500.0,0.00020965,2]
[350000223,1737559834618,-500.0,0.00020965,2]
[350000224,1737559834628,-500.0,0.00020965,2]
[350000225,1737559834638,-500.0,0.00020965,2]
[350000226,1737559834648,-976.7,0.00020965,2]
[350000227,1737559834658,-500.0,0.00020965,2]
[350000228,1737559834668,-500.0,0.00020965,2]
[350000229,1737559834678,-500.0,0.00020965,2]
[350000230,1737559834687,-500.0,0.00020965,2]
[350000231,1737559834696,-901.92,0.00020965,2]
[350000232,1737559834705,-500.0,0.00020965,2]
[350000233,1737559834714,-500.0,0.00020965,2]
[350000234,1737559834724,-387.9822189,0.00020965,2]
[350000235,1737559834735,-500.0,0.00020965,2]
[350000236,1737559834747,-500.0,0.00020965,2]
[350000237,1737559834756,-500.0,0.00020965,2]
[350000238,1737559834765,-500.0,0.00020965,2]
[350000239,1737559834775,-500.0,0.00020965,2]
[350000240,1737559834784,-753.38,0.00020965,2]
[350000241,1737559834793,-500.0,0.00020965,2]
[350000242,1737559834802,-500.0,0.00020965,2]
[350000243,1737559834812,-500.0,0.00020965,2]
[350000244,1737559834824,-500.0,0.00020965,2]
[350000245,1737559834834,-500.0,0.00020965,2]
[350000246,1737559834844,-500.0,0.00020965,2]
[350000247,1737559834853,-1116.76,0.00020965,2]
[350000248,1737559834862,-500.0,0.00020965,2]
[350000249,1737559834872,-500.0,0.00020965,2]
[350000250,1737559834882,-744.1,0.00020965,2]
[350000251,1737559834892,-500.0,0.00020965,2]
[350000252,1737559834902,-500.0,0.00020965,2]
[350000253,1737559834911,-788.15,0.00020965,2]
[350000254,1737559834921,-500.0,0.00020965,2]
[350000255,1737559834931,-927.11,0.00020965,2]
[350000256,1737559834940,-500.0,0.00020965,2]
[350000257,1737559834950,-869.66,0.00020965,2]
[350000258,1737559834959,-500.0,0.00020965,2]
[350000259,1737559834970,-500.0,0.00020965,2]
[350000260,1737559834979,-648.72,0.00020965,2]
[350000261,1737559834991,-1092.74,0.00020965,2]
[350000262,1737559835001,-862.05,0.00020965,2]
[350000263,1737559835010,-767.96,0.00020965,2]
[350000264,1737559835020,-616.08,0.00020965,2]
[350000265,1737559835029,-1831.6,0.00020965,2]
[350000266,1737559835039,-500.0,0.00020965,2]
[350000267,1737559835049,-1225.49,0.00020965,2]
[350000268,1737559835059,-500.0,0.00020965,2]
[350000269,1737559835068,-500.0,0.00020965,2]
[350000270,1737559835078,-762.49,0.00020965,2]
[350000271,1737559835087,-1910.63,0.00020965,2]
[350000272,1737559835096,-1286.89,0.00020965,2]
[350000273,1737559835106,-649.4,0.00020965,2]
[350000274,1737559835116,-500.0,0.00020965,2]
[350000275,1737559835126,-1146.13,0.00020965,2]
[350000276,1737559835136,-500.0,0.00020965,2]
[350000277,1737559835146,-500.0,0.00020965,2]
[350000278,1737559835155,-500.0,0.00020965,2]
[350000279,1737559835165,-568.58,0.00020965,2]
[350000280,1737559835174,-982.64,0.00020965,2]
[350000281,1737559835184,-500.0,0.00020965,2]
[350000282,1737559835193,-1247.31,0.00020965,2]
[350000283,1737559835202,-500.0,0.00020965,2]
[350000284,1737559835212,-500.0,0.00020965,2]
[350000285,1737559835221,-515.72358269,0.00020965,2]
[350000286,1737559835231,-1734.45,0.00020965,2]
[350000287,1737559835242,-867.25,0.00020965,2]
[350000288,1737559835252,-500.0,0.00020965,2]
[350000289,1737559835261,-500.0,0.00020965,2]
[350000290,1737559835271,-500.0,0.00020965,2]
[350000291,1737559835280,-500.0,0.00020965,2]
[350000292,1737559835289,-500.0,0.00020965,2]
[350000293,1737559835299,-1171.71,0.00020965,2]
[350000294,1737559835308,-1016.82,0.00020965,2]
[350000295,1737559835317,-1326.14,0.00020965,2]
[350000296,1737559835326,-500.0,0.00020965,2]
[350000297,1737559835336,-1856.8,0.00020965,2]
[350000298,1737559835345,-1005.05,0.00020965,2]
[350000299,1737559835355,-1850.97,0.00020965,2]
[350000300,1737559835364,-811.21,0.00020965,2]
[350000301,1737559835374,-1027.09,0.00020965,2]
[350000302,1737559835383,-500.0,0.00020965,2]
[350000303,1737559835393,-799.26,0.00020965,2]
[350000304,1737559835402,-1105.72,0.00020965,2]
[350000305,1737559835412,-789.37,0.00020965,2]
[350000306,1737559835421,-2094.63,0.00020965,2]
[350000307,1737559835431,-763.4,0.00020965,2]
[350000308,1737559835441,-500.0,0.00020965,2]
[350000309,1737559835450,-3198.46,0.00020965,2]
[350000310,1737559835461,-3000.37,0.00020965,2]
[350000311,1737559835473,-2280.77,0.00020965,2]
[350000312,1737559835483,-1303.58,0.00020965,2]
[350000313,1737559835495,-500.0,0.00020965,2]
[350000314,1737559835506,-1499.74,0.00020965,2]
[350000315,1737559835516,-776.08,0.00020965,2]
[350000316,1737559835525,-1850.64,0.00020965,2]
[350000317,1737559835535,-3563.92,0.00020965,2]
[350000318,1737559835545,-500.0,0.00020965,2]
[350000319,1737559835556,-977.78,0.00020965,2]
[350000320,1737559835565,-2509.3,0.00020965,2]
[350000321,1737559835575,-3120.07,0.00020965,2]
[350000322,1737559835585,-1188.19,0.00020965,2]
[350000323,1737559835594,-647.6,0.00020965,2]
[350000324,1737559835604,-500.0,0.00020965,2]
[350000325,1737559835614,-500.0,0.00020965,2]
[350000326,1737559835624,-1057.85,0.00020965,2]
[350000327,1737559835633,-500.0,0.00020965,2]
[350000328,1737559835643,-561.99,0.00020965,2]
[350000329,1737559835652,-500.0,0.00020965,2]
[350000330,1737559835662,-500.0,0.00020965,2]
[350000331,1737559835671,-500.0,0.00020965,2]
[350000332,1737559835681,-1310.57,0.00020965,2]
[350000333,1737559835690,-500.0,0.00020965,2]
[350000334,1737559835699,-500.0,0.00020965,2]
[350000335,1737559835709,-500.0,0.00020965,2]
[350000336,1737559835718,-1346.55,0.00020965,2]
[350000337,1737559835728,-500.0,0.00020965,2]
[350000338,1737559835738,-1477.61,0.00020965,2]
[350000339,1737559835755,-657.20619227,0.00020965,2]
[350000340,1737559835776,-500.0,0.00020897,2]
[350000341,1737559835786,-225.4122558,0.00020965,2]
[350000342,1737559835797,-420.2,0.00020965,2]
[350000343,1737559835809,-1640.0,0.00020965,2]
[350000344,1737559835820,-438.05155193,0.00020965,2]
[350000345,1737559835830,-528.41,0.00020965,2]
[350000346,1737559835839,-1785.61,0.00020965,2]
[350000347,1737559835848,-500.0,0.00020965,2]
[350000348,1737559835858,-107.1400989,0.00020965,2]
[350000349,1737559835870,-888.4399011,0.00020965,2]
[350000350,1737559835879,-500.0,0.00020965,2]
[350000351,1737559835889,-500.0,0.00020965,2]
[350000352,1737559835898,-500.0,0.00020965,2]
[350000353,1737559835907,-285.24305118,0.00020966,2]
[350000354,1737559835916,-501.47732755,0.00020966,2]
[350000355,1737559835926,-500.0,0.00020966,2]
[350000356,1737559835935,-251.27519143,0.00020966,2]
[350000357,1737559835944,-500.0,0.00020966,2]
[350000358,1737559835954,-502.88233961,0.00020966,2]
[350000359,1737559835963,-266.26629051,0.00020966,2]
[350000360,1737559835973,-500.0,0.00020966,2]
[350000361,1737559835983,-230.99120606,0.00020966,2]
[350000362,1737559835996,-505.60453528,0.00020966,2]
[350000363,1737559836006,-500.0,0.00020966,2]
[350000364,1737559836016,-500.0,0.00020966,2]
[350000365,1737559836026,-500.0,0.00020966,2]
[350000366,1737559836036,-500.0,0.00020966,2]
[350000367,1737559836045,-500.0,0.00020966,2]
[350000368,1737559836054,-501.64243051,0.00020966,2]
[350000369,1737559836065,-301.14753056,0.00020966,2]
[350000370,1737559836074,-502.14893857,0.00020966,2]
[350000371,1737559836084,-500.0,0.00020966,2]
[350000372,1737559836093,-500.0,0.00020966,2]
[350000373,1737559836102,-500.0,0.00020966,2]
[350000374,1737559836112,-500.0,0.00020966,2]
[350000375,1737559836121,-500.0,0.00020966,2]
[350000376,1737559836130,-362.39799688,0.00020966,2]
[350000377,1737559836140,-500.0,0.00020966,2]
[350000378,1737559836149,-500.0,0.00020966,2]
[350000379,1737559836159,-500.0,0.00020966,2]
[350000380,1737559836168,-500.0,0.00020966,2]
[350000381,1737559836178,-501.58656571,0.00020966,2]
[350000382,1737559836187,-500.0,0.00020966,2]
[350000383,1737559836197,-500.0,0.00020966,2]
[350000384,1737559836207,-500.0,0.00020966,2]
[350000385,1737559836216,-351.211748,0.00020966,2]
[350000386,1737559836226,-500.0,0.00020966,2]
[350000387,1737559836236,-563.53888645,0.00020966,2]
[350000388,1737559836247,-500.0,0.00020966,2]
[350000389,1737559836257,-500.0,0.00020966,2]
[350000390,1737559836266,-500.0,0.00020966,2]
[350000391,1737559836276,-501.34515397,0.00020966,2]
[350000392,1737559836285,-460.73580129,0.00020966,2]
[350000393,1737559836709,-39.26419871,0.00020966,2]
[350000394,1737559836718,-500.0,0.00020966,2]
[350000395,1737559836728,-500.0,0.00020966,2]
[350000396,1737559836738,-500.74424708,0.00020966,2]
[350000397,1737559836748,-2000.0,0.00020966,2]
[350000398,1737559836757,-200.0,0.00020966,2]
[350000399,1737559836767,-500.0,0.00020966,2]
[350000400,1737559836776,-277.2091084,0.00020966,2]
[350000401,1737559836787,-311.77884498,0.00020966,2]
[350000402,1737559836796,-500.0,0.00020966,2]
[350000403,1737559836805,-500.0,0.00020966,2]
[350000404,1737559836817,-354.97797116,0.00020966,2]
[350000405,1737559836828,-145.02202884,0.00020966,2]
[350000406,1737559836837,-500.0,0.00020966,2]
[350000407,1737559836847,-500.0,0.00020966,2]
[350000408,1737559836856,-160.47326625,0.00020966,2]
[350000409,1737559836867,-339.52673375,0.00020966,2]
[350000410,1737559836876,-520.67731626,0.00020966,2]
[350000411,1737559836885,-399.79594994,0.00020966,2]
[350000412,1737559836896,-100.20405006,0.00020966,2]
[350000413,1737559836905,-465.00990546,0.00020966,2]
[350000414,1737559836915,-500.0,0.00020966,2]
[350000415,1737559836924,-500.0,0.00020966,2]
[350000416,1737559836933,-500.0,0.00020966,2]
[350000417,1737559836942,-517.25692796,0.00020966,2]
[350000418,1737559836951,-500.0,0.00020966,2]
[350000419,1737559836962,-500.0,0.00020966,2]
[350000420,1737559836971,-500.0,0.00020966,2]
[350000421,1737559836980,-500.0,0.00020966,2]
[350000422,1737559836991,-500.0,0.00020966,2]
[350000423,1737559837001,-500.0,0.00020966,2]
[350000424,1737559837010,-500.0,0.00020966,2]
[350000425,1737559837019,-445.90346809,0.00020966,2]
[350000426,1737559837030,-54.09653191,0.00020966,2]
[350000427,1737559837040,-350.82608241,0.00020966,2]
[350000428,1737559837067,-149.17391759,0.00020966,2]
[350000429,1737559837076,-200.0,0.00020966,2]
[350000430,1737559837085,-812.27,0.00020966,2]
[350000431,1737559837095,-500.0,0.00020966,2]
[350000432,1737559837104,-500.0,0.00020966,2]
[350000433,1737559837113,-500.0,0.00020966,2]
[350000434,1737559837123,-156.82687918,0.00020966,2]
[350000435,1737559837136,-343.17312082,0.00020966,2]
[350000436,1737559837145,-1000.36,0.00020966,2]
[350000437,1737559837154,-500.0,0.00020966,2]
[350000438,1737559837164,-957.66,0.00020966,2]
[350000439,1737559837173,-500.0,0.00020966,2]
[350000440,1737559837183,-792.02,0.00020966,2]
[350000441,1737559837192,-500.0,0.00020966,2]
[350000442,1737559837201,-174.18687918,0.00020966,2]
[350000443,1737559837225,-325.81312082,0.00020966,2]
[350000444,1737559837235,-500.0,0.00020966,2]
[350000445,1737559837246,-500.0,0.00020966,2]
[350000446,1737559837255,-668.87,0.00020966,2]
[350000447,1737559837265,-500.0,0.00020966,2]
[350000448,1737559837274,-500.0,0.00020966,2]
[350000449,1737559837284,-500.0,0.00020966,2]
[350000450,1737559837293,-500.0,0.00020966,2]
[350000451,1737559837303,-500.0,0.00020966,2]
[350000452,1737559837313,-2259.28811368,0.00020966,2]
[350000453,1737559837326,-740.71188632,0.00020966,2]
[350000454,1737559837336,-280.48888347,0.00020971,2]
[350000455,1737559837349,-94.89732283,0.00020971,2]
[350000456,1737559837359,-150.0,0.00020972,2]
[350000457,1737559837368,-97.63026917,0.00020973,2]
[350000458,1737559837380,-56.80545749,0.00020973,2]
[350000459,1737559837389,-500.0,0.00020973,2]
[350000460,1737559837399,-152.0,0.00020978,3]
[350000461,1737559837408,-11.71519959,0.00020986,2]
[350000462,1737559837424,-138.28480041,0.00020986,2]
[350000463,1737559837433,-1536.83537959,0.00021,2]
[350000478,1737559838376,-502.58273627,0.00021,2]
[350000480,1737559838388,-249.87181497,0.00021,2]
[350000483,1737559838413,-1966.06077019,0.00021,2]
[350000486,1737559838425,-642.08255037,0.00021,2]
[350000488,1737559838440,-573.45,0.00021,2]
[350000490,1737559838454,-7942.42158305,0.00021,2]
[350000492,1737559838469,-1427.0,0.00021,2]
[350000493,1737559838481,-543.59678975,0.00021003,2]
[350000494,1737559838495,-153.14980159,0.00021041,2]
[350000495,1737559838507,-234.31364821,0.00021069,2]
[350000496,1737559838519,-11176.65625051,0.0002107,2]
[350000497,1737559838534,-20816.2119877,0.0002107,2]
[350000498,1737559838555,-500.0,0.0002107,2]
[350000499,1737559838570,-9556.34175576,0.0002107,2]
[350000517,1737559839894,-513.52855399,0.00020964,2]
[350000518,1737559839907,-1277.3815307,0.0002107,2]
[350000519,1737559839923,-4019.09127962,0.0002107,2]
[350000520,1737559839937,-315.6,0.0002107,2]
[350000521,1737559839969,-628.3185393,0.0002107,2]
[350000522,1737559839983,-7605.460225,0.0002107,2]
[350000523,1737559840041,-11738.80197,0.0002107,2]
[350000524,1737559840142,-944.674852,0.00020965,2]
[350000525,1737559840191,-289.615148,0.00020965,2]
[350000526,1737559840205,-1078.90199044,0.0002107,2]
[350000527,1737559840219,-2102.9237387,0.0002107,2]
[350000528,1737559840235,-4183.3518183,0.0002107,2]
[350000530,1737559840475,-648.38324154,0.00016438,2]
[350000548,1737559842811,-5386.5,0.00016438,2]
[350000549,1737559842822,-732.542,0.00016438,2]
[350000550,1737559842848,-468.649,0.00016438,2]
[350000551,1737559842988,-2762.14686719,0.00016438,2]
[350000552,1737559842998,-500.0,0.00020964,2]
[350000553,1737559843008,-500.0,0.00020964,2]
[350000554,1737559843017,-1219.89,0.00020964,2]
[350000555,1737559843027,-1761.31,0.00020965,2]
[350000556,1737559843037,-266600.04801399,0.0002107,2]
[350000557,1737559843047,-500.0,0.0002107,2]
[350000558,1737559843057,-500.0,0.0002107,2]
[350000559,1737559843066,-515.47075715,0.0002107,2]
[350000560,1737559843076,-500.0,0.0002107,2]
[350000561,1737559843085,-500.0,0.0002107,2]
[350000562,1737559843095,-500.0,0.0002107,2]
[350000563,1737559843104,-500.0,0.0002107,2]
[350000564,1737559843114,-500.0,0.0002107,2]
[350000565,1737559843123,-500.0,0.0002107,2]
[350000566,1737559843132,-500.0,0.0002107,2]
[350000567,1737559843142,-500.0,0.0002107,2]
[350000568,1737559843151,-500.0,0.0002107,2]
[350000569,1737559843160,-500.0,0.0002107,2]
[350000570,1737559843170,-500.0,0.0002107,2]
[350000571,1737559843179,-500.0,0.0002107,2]
[350000572,1737559843189,-500.0,0.0002107,2]
[350000573,1737559843199,-500.0,0.0002107,2]
[350000574,1737559843209,-500.0,0.0002107,2]
[350000575,1737559843218,-500.0,0.0002107,2]
[350000576,1737559843227,-500.0,0.0002107,2]
[350000577,1737559843237,-500.0,0.0002107,2]
[350000578,1737559843248,-500.0,0.0002107,2]
[350000579,1737559843257,-479.53272417,0.0002107,2]
[350000580,1737559843267,-500.0,0.0002107,2]
[350000581,1737559843276,-500.0,0.0002107,2]
[350000582,1737559843286,-500.0,0.0002107,2]
[350000583,1737559843296,-500.0,0.0002107,2]
[350000584,1737559843306,-500.0,0.0002107,2]
[350000585,1737559843315,-500.0,0.0002107,2]
[350000586,1737559843325,-503.68510056,0.0002107,2]
[350000588,1737559843335,-500.0,0.0002107,2]
[350000590,1737559843345,-500.0,0.0002107,2]
[350000592,1737559843354,-500.0,0.0002107,2]
[350000594,1737559843363,-504.48520851,0.0002107,2]
[350000596,1737559843373,-500.0,0.0002107,2]
[350000598,1737559843383,-500.0,0.0002107,2]
[350000600,1737559843392,-500.0,0.0002107,2]
[350000602,1737559843402,-500.0,0.0002107,2]
[350000604,1737559843412,-500.0,0.0002107,2]
[350000605,1737559843421,-500.0,0.0002107,2]
[350000606,1737559843431,-500.0,0.0002107,2]
[350000607,1737559843440,-509.79727025,0.0002107,2]
[350000608,1737559843450,-500.0,0.0002107,2]
[350000609,1737559843460,-500.0,0.0002107,2]
[350000610,1737559843472,-500.0,0.0002107,2]
[350000611,1737559843482,-500.0,0.0002107,2]
[350000612,1737559843491,-500.0,0.0002107,2]
[350000613,1737559843501,-500.0,0.0002107,2]
[350000614,1737559843512,-500.0,0.0002107,2]
[350000615,1737559843521,-500.0,0.0002107,2]
[350000616,1737559843532,-500.0,0.0002107,2]
[350000617,1737559843543,-500.0,0.0002107,2]
[350000618,1737559843554,-500.0,0.0002107,2]
[350000619,1737559843563,-500.0,0.0002107,2]
[350000620,1737559843574,-500.0,0.0002107,2]
[350000621,1737559843583,-500.0,0.0002107,2]
[350000622,1737559843593,-500.0,0.0002107,2]
[350000623,1737559843602,-500.0,0.0002107,2]
[350000624,1737559843612,-500.0,0.0002107,2]
[350000625,1737559843622,-500.0,0.0002107,2]
[350000626,1737559843632,-500.0,0.0002107,2]
[350000627,1737559843642,-500.0,0.0002107,2]
[350000628,1737559843652,-334.37372009,0.0002107,2]
[350000629,1737559843662,-500.0,0.0002107,2]
[350000630,1737559843672,-500.0,0.0002107,2]
[350000631,1737559843682,-500.0,0.0002107,2]
[350000632,1737559843692,-500.0,0.0002107,2]
[350000633,1737559843701,-251.46873897,0.0002107,2]
[350000634,1737559843711,-408.46642065,0.0002107,2]
[350000635,1737559843720,-500.0,0.0002107,2]
[350000636,1737559843730,-500.0,0.0002107,2]
[350000637,1737559843739,-500.0,0.0002107,2]
[350000638,1737559843750,-287.23902292,0.0002107,2]
[350000639,1737559843760,-500.0,0.0002107,2]
[350000640,1737559843769,-500.0,0.0002107,2]
[350000641,1737559843779,-506.55022243,0.0002107,2]
[350000642,1737559843788,-500.0,0.0002107,2]
[350000643,1737559843798,-500.0,0.0002107,2]
[350000644,1737559843807,-500.0,0.0002107,2]
[350000645,1737559843816,-601.35735356,0.0002107,2]
[350000646,1737559843825,-500.0,0.0002107,2]
[350000647,1737559843835,-500.0,0.0002107,2]
[350000648,1737559843845,-500.0,0.0002107,2]
[350000649,1737559843854,-500.0,0.0002107,2]
[350000650,1737559843864,-500.0,0.0002107,2]
[350000651,1737559843875,-500.0,0.0002107,2]
[350000652,1737559843893,-500.0,0.0002107,2]
[350000653,1737559843917,-500.0,0.0002107,2]
[350000654,1737559843926,-500.0,0.0002107,2]
[350000655,1737559843935,-503.59853383,0.0002107,2]
[350000656,1737559843945,-245.69,0.0002107,2]
[350000657,1737559843954,-500.0,0.0002107,2]
[350000658,1737559843963,-456.70602202,0.0002107,2]
[350000659,1737559843971,-500.0,0.0002107,2]
[350000660,1737559843980,-500.0,0.0002107,2]
[350000661,1737559843989,-500.0,0.0002107,2]
[350000662,1737559844000,-500.0,0.0002107,2]
[350000663,1737559844009,-500.0,0.0002107,2]
[350000664,1737559844018,-500.0,0.0002107,2]
[350000665,1737559844027,-500.0,0.0002107,2]
[350000666,1737559844037,-500.0,0.0002107,2]
[350000667,1737559844047,-500.0,0.0002107,2]
[350000668,1737559844057,-281.92205087,0.0002107,2]
[350000669,1737559844066,-500.0,0.0002107,2]
[350000670,1737559844077,-500.0,0.0002107,2]
[350000671,1737559844087,-500.0,0.0002107,2]
[350000672,1737559844097,-500.0,0.0002107,2]
[350000673,1737559844106,-305.01297713,0.0002107,2]
[350000674,1737559844116,-500.0,0.0002107,2]
[350000675,1737559844126,-500.0,0.0002107,2]
[350000676,1737559844136,-500.0,0.0002107,2]
[350000677,1737559844146,-500.0,0.0002107,2]
[350000678,1737559844155,-500.0,0.0002107,2]
[350000679,1737559844164,-500.0,0.0002107,2]
[350000680,1737559844174,-500.0,0.0002107,2]
[350000681,1737559844183,-500.0,0.0002107,2]
[350000682,1737559844193,-500.0,0.0002107,2]
[350000683,1737559844202,-500.0,0.0002107,2]
[350000684,1737559844212,-500.0,0.0002107,2]
[350000685,1737559844223,-500.0,0.0002107,2]
[350000686,1737559844236,-503.78137706,0.0002107,2]
[350000687,1737559844251,-500.0,0.0002107,2]
[350000688,1737559844266,-500.0,0.0002107,2]
[350000689,1737559844277,-500.0,0.0002107,2]
[350000690,1737559844287,-500.0,0.0002107,2]
[350000691,1737559844296,-500.0,0.0002107,2]
[350000692,1737559844306,-500.0,0.0002107,2]
[350000693,1737559844315,-500.0,0.0002107,2]
[350000694,1737559844324,-500.0,0.0002107,2]
[350000695,1737559844333,-500.0,0.0002107,2]
[350000696,1737559844343,-500.0,0.0002107,2]
[350000697,1737559844354,-500.0,0.0002107,2]
[350000698,1737559844363,-500.0,0.0002107,2]
[350000699,1737559844372,-500.0,0.0002107,2]
[350000700,1737559844382,-500.0,0.0002107,2]
[350000701,1737559844391,-500.0,0.0002107,2]
[350000702,1737559844401,-500.0,0.0002107,2]
[350000703,1737559844411,-500.0,0.0002107,2]
[350000704,1737559844420,-500.0,0.0002107,2]
[350000705,1737559844430,-500.0,0.0002107,2]
[350000706,1737559844439,-500.0,0.0002107,2]
[350000707,1737559844448,-500.0,0.0002107,2]
[350000708,1737559844458,-500.0,0.0002107,2]
[350000709,1737559844473,-500.0,0.0002107,2]
[350000710,1737559844482,-500.0,0.0002107,2]
[350000711,1737559844493,-500.0,0.0002107,2]
[350000712,1737559844503,-502.96572292,0.0002107,2]
[350000713,1737559844515,-500.0,0.0002107,2]
[350000714,1737559844524,-500.0,0.0002107,2]
[350000715,1737559844535,-500.0,0.0002107,2]
[350000716,1737559844545,-509.39192143,0.0002107,2]
[350000717,1737559844555,-500.0,0.0002107,2]
[350000718,1737559844565,-500.0,0.0002107,2]
[350000719,1737559844575,-500.0,0.0002107,2]
[350000720,1737559844584,-500.0,0.0002107,2]
[350000721,1737559844594,-500.0,0.0002107,2]
[350000722,1737559844604,-504.79271626,0.0002107,2]
[350000723,1737559844614,-556.1811742,0.0002107,2]
[350000724,1737559844623,-500.0,0.0002107,2]
[350000725,1737559844633,-500.0,0.0002107,2]
[350000726,1737559844643,-500.0,0.0002107,2]
[350000727,1737559844653,-500.0,0.0002107,2]
[350000728,1737559844662,-500.0,0.0002107,2]
[350000729,1737559844672,-500.0,0.0002107,2]
[350000730,1737559844681,-500.0,0.0002107,2]
[350000731,1737559844691,-500.0,0.0002107,2]
[350000732,1737559844701,-500.0,0.0002107,2]
[350000733,1737559844711,-500.0,0.0002107,2]
[350000734,1737559844720,-500.0,0.0002107,2]
[350000735,1737559844729,-500.0,0.0002107,2]
[350000736,1737559844739,-557.31643313,0.0002107,2]
[350000737,1737559844751,-500.0,0.0002107,2]
[350000738,1737559844763,-504.55149892,0.0002107,2]
[350000739,1737559844775,-500.0,0.0002107,2]
[350000740,1737559844785,-500.0,0.0002107,2]
[350000741,1737559844795,-500.0,0.0002107,2]
[350000742,1737559844805,-503.32887218,0.0002107,2]
[350000743,1737559844814,-500.0,0.0002107,2]
[350000744,1737559844823,-500.0,0.0002107,2]
[350000745,1737559844834,-500.0,0.0002107,2]
[350000746,1737559844843,-500.0,0.0002107,2]
[350000747,1737559844853,-500.0,0.0002107,2]
[350000748,1737559844862,-500.0,0.0002107,2]
[350000749,1737559844872,-500.0,0.0002107,2]
[350000750,1737559844881,-500.0,0.0002107,2]
[350000751,1737559844891,-500.0,0.0002107,2]
[350000752,1737559844901,-500.0,0.0002107,2]
[350000753,1737559844910,-500.0,0.0002107,2]
[350000754,1737559844919,-500.0,0.0002107,2]
[350000755,1737559844929,-500.0,0.0002107,2]
[350000756,1737559844939,-528.38557907,0.0002107,2]
[350000757,1737559844948,-500.0,0.0002107,2]
[350000758,1737559844958,-500.0,0.0002107,2]
[350000759,1737559844967,-500.0,0.0002107,2]
[350000760,1737559844977,-500.0,0.0002107,2]
[350000761,1737559844986,-500.0,0.0002107,7]
[350000762,1737559844995,-929.92,0.0002107,2]
[350000763,1737559845005,-500.0,0.0002107,2]
[350000764,1737559845015,-500.0,0.0002107,2]
[350000765,1737559845025,-500.0,0.0002107,2]
[350000766,1737559845034,-987.49,0.0002107,2]
[350000767,1737559845045,-500.0,0.0002107,2]
[350000768,1737559845055,-500.0,0.0002107,2]
[350000769,1737559845064,-601.63,0.0002107,2]
[350000770,1737559845075,-838.31,0.0002107,2]
[350000771,1737559845084,-500.0,0.0002107,2]
[350000772,1737559845093,-1076.39,0.0002107,2]
[350000773,1737559845103,-500.0,0.0002107,2]
[350000774,1737559845113,-521.42763089,0.0002107,2]
[350000775,1737559845122,-500.0,0.0002107,2]
[350000776,1737559845132,-1444.98,0.0002107,2]